fUSD/lending_fUSD_20250109
["ID","MTS","AMOUNT","RATE_DAILY","PERIOD"]
[348329501,1736446265140,-513.38,0.00010514,2]
[348329502,1736446265150,-500.0,0.00010514,2]
[348329503,1736446265160,-500.0,0.00010514,2]
[348329504,1736446265171,-620.17120095,0.00010514,2]
[348329505,1736446265182,-251.89450797,0.00010514,2]
[348329506,1736446265195,-500.0,0.00010514,2]
[348329507,1736446265205,-500.0,0.00010514,2]
[348329508,1736446265215,-331.02595271,0.00010514,2]
[348329509,1736446265226,-500.0,0.00010514,2]
[348329510,1736446265237,-500.0,0.00010514,2]
[348329511,1736446265246,-394.72652775,0.00010514,2]
[348329512,1736446265257,-707.52,0.00010514,2]
[348329513,1736446265267,-500.0,0.00010514,2]
[348329514,1736446265278,-500.0,0.00010514,2]
[348329515,1736446265288,-500.0,0.00010514,2]
[348329516,1736446265298,-500.0,0.00010514,2]
[348329517,1736446265308,-3800.2,0.00010514,2]
[348329518,1736446265317,-520.07,0.00010514,2]
[348329519,1736446265328,-500.0,0.00010514,2]
[348329520,1736446265338,-660.12,0.00010514,2]
[348329521,1736446265348,-536.40920119,0.00010514,2]
[348329522,1736446265357,-767.59,0.00010514,2]
[348329523,1736446265370,-500.0,0.00010514,2]
[348329524,1736446265380,-155.87,0.00010514,2]
[348329525,1736446265389,-835.3,0.00010514,2]
[348329526,1736446265399,-2877.11,0.00010514,2]
[348329527,1736446265408,-500.0,0.00010514,2]
[348329528,1736446265418,-500.0,0.00010514,2]
[348329529,1736446265428,-1020.87,0.00010514,2]
[348329530,1736446265440,-500.0,0.00010514,2]
[348329531,1736446265450,-500.0,0.00010514,2]
[348329532,1736446265460,-514.77083463,0.00010514,2]
[348329533,1736446265470,-500.0,0.00010514,2]
[348329534,1736446265480,-541.36,0.00010514,2]
[348329535,1736446265490,-500.0,0.00010514,2]
[348329536,1736446265499,-537.31,0.00010514,2]
[348329537,1736446265509,-500.0,0.00010514,2]
[348329538,1736446265519,-564.98,0.00010514,2]
[348329539,1736446265529,-500.0,0.00010514,2]
[348329540,1736446265539,-500.0,0.00010514,2]
[348329541,1736446265549,-500.0,0.00010514,2]
[348329542,1736446265559,-500.0,0.00010514,2]
[348329543,1736446265569,-770.91,0.00010514,2]
[348329544,1736446265578,-638.11,0.00010514,2]
[348329545,1736446265588,-1325.59,0.00010514,2]
[348329546,1736446265597,-500.0,0.00010514,2]
[348329547,1736446265607,-724.37,0.00010514,2]
[348329548,1736446265617,-565.07,0.00010514,2]
[348329549,1736446265627,-500.0,0.00010514,2]
[348329550,1736446265637,-500.0,0.00010514,2]
[348329551,1736446265646,-500.0,0.00010514,2]
[348329552,1736446265656,-500.0,0.00010514,2]
[348329553,1736446265666,-1157.94,0.00010514,2]
[348329554,1736446265676,-500.0,0.00010514,2]
[348329555,1736446265687,-500.0,0.00010514,2]
[348329556,1736446265697,-500.0,0.00010514,2]
[348329557,1736446265707,-500.0,0.00010514,2]
[348329558,1736446265716,-738.37,0.00010514,2]
[348329559,1736446265727,-500.0,0.00010514,2]
[348329560,1736446265736,-500.0,0.00010514,2]
[348329561,1736446265746,-500.0,0.00010514,2]
[348329562,1736446265756,-500.0,0.00010514,2]
[348329563,1736446265766,-500.0,0.00010514,2]
[348329564,1736446265778,-500.0,0.00010514,2]
[348329565,1736446265788,-500.0,0.00010514,2]
[348329566,1736446265798,-500.0,0.00010514,2]
[348329567,1736446265807,-500.0,0.00010514,2]
[348329568,1736446265818,-526.88,0.00010514,2]
[348329569,1736446265828,-500.0,0.00010514,2]
[348329570,1736446265837,-500.0,0.00010514,2]
[348329571,1736446265847,-500.0,0.00010514,2]
[348329572,1736446265857,-500.0,0.00010514,2]
[348329573,1736446265867,-500.0,0.00010514,2]
[348329574,1736446265877,-500.0,0.00010514,2]
[348329575,1736446265887,-500.0,0.00010514,2]
[348329576,1736446265896,-509.65,0.00010514,2]
[348329577,1736446265905,-500.0,0.00010514,2]
[348329578,1736446265915,-914.2,0.00010514,2]
[348329579,1736446265925,-578.81,0.00010514,2]
[348329580,1736446265936,-762.95,0.00010515,2]
[348329581,1736446265945,-500.0,0.00010515,2]
[348329582,1736446265955,-1085.97,0.00010515,2]
[348329583,1736446265964,-500.0,0.00010515,2]
[348329584,1736446265974,-500.0,0.00010515,2]
[348329585,1736446265983,-1367.76,0.00010515,2]
[348329586,1736446265992,-647.49,0.00010515,2]
[348329587,1736446266003,-920.0,0.00010515,2]
[348329588,1736446266012,-233.96,0.00010515,2]
[348329589,1736446266021,-500.0,0.00010515,2]
[348329590,1736446266032,-500.0,0.00010515,2]
[348329591,1736446266042,-500.0,0.00010515,2]
[348329592,1736446266051,-500.0,0.00010515,2]
[348329593,1736446266061,-2408.14,0.00010515,2]
[348329594,1736446266070,-645.44,0.00010515,2]
[348329595,1736446266080,-500.0,0.00010515,2]
[348329596,1736446266090,-500.0,0.00010515,2]
[348329597,1736446266099,-1733.41,0.00010515,2]
[348329598,1736446266108,-500.0,0.00010515,2]
[348329599,1736446266118,-500.0,0.00010515,2]
[348329600,1736446266127,-500.0,0.00010515,2]
[348329601,1736446266137,-500.0,0.00010515,2]
[348329602,1736446266147,-500.0,0.00010515,2]
[348329603,1736446266156,-6312.29,0.00010515,2]
[348329604,1736446266166,-500.0,0.00010515,2]
[348329605,1736446266176,-500.0,0.00010515,2]
[348329606,1736446266187,-500.0,0.00010515,2]
[348329607,1736446266200,-2345.7,0.00010515,2]
[348329608,1736446266210,-500.0,0.00010515,2]
[348329609,1736446266219,-500.0,0.00010515,2]
[348329610,1736446266229,-500.0,0.00010515,2]
[348329611,1736446266239,-500.0,0.00010515,2]
[348329612,1736446266248,-500.0,0.00010515,2]
[348329613,1736446266258,-500.0,0.00010515,2]
[348329614,1736446266267,-500.0,0.00010515,2]
[348329615,1736446266276,-500.0,0.00010515,2]
[348329616,1736446266286,-1289.19,0.00010515,2]
[348329617,1736446266295,-595.44,0.00010515,2]
[348329618,1736446266305,-500.0,0.00010515,2]
[348329619,1736446266315,-500.0,0.00010515,2]
[348329620,1736446266324,-500.0,0.00010515,2]
[348329621,1736446266334,-534.22,0.00010515,2]
[348329622,1736446266344,-500.0,0.00010515,2]
[348329623,1736446266354,-500.0,0.00010515,2]
[348329624,1736446266365,-500.0,0.00010515,2]
[348329625,1736446266376,-500.0,0.00010515,2]
[348329626,1736446266386,-500.0,0.00010515,2]
[348329627,1736446266396,-500.0,0.00010515,2]
[348329628,1736446266406,-959.38,0.00010515,2]
[348329629,1736446266417,-500.0,0.00010515,2]
[348329630,1736446266427,-500.0,0.00010515,2]
[348329631,1736446266437,-539.48,0.00010515,2]
[348329632,1736446266446,-500.0,0.00010515,2]
[348329633,1736446266456,-500.0,0.00010515,2]
[348329634,1736446266466,-500.0,0.00010515,2]
[348329635,1736446266476,-506.0,0.00010515,2]
[348329636,1736446266486,-500.0,0.00010515,2]
[348329637,1736446266496,-639.27,0.00010515,2]
[348329638,1736446266506,-626.84,0.00010515,2]
[348329639,1736446266515,-500.0,0.00010515,2]
[348329640,1736446266525,-590.62,0.00010515,2]
[348329641,1736446266534,-500.0,0.00010515,2]
[348329642,1736446266544,-500.0,0.00010515,2]
[348329643,1736446266553,-216.53626363,0.00010515,2]
[348329644,1736446266563,-590.65,0.00010515,2]
[348329645,1736446266573,-500.0,0.00010515,2]
[348329646,1736446266583,-306.67713654,0.00010515,2]
[348329647,1736446266592,-736.38,0.00010515,2]
[348329648,1736446266602,-500.0,0.00010515,2]
[348329649,1736446266612,-632.42,0.00010515,2]
[348329650,1736446266622,-500.0,0.00010515,2]
[348329651,1736446266631,-500.0,0.00010515,2]
[348329652,1736446266643,-500.0,0.00010515,2]
[348329653,1736446266652,-500.0,0.00010515,2]
[348329654,1736446266662,-500.0,0.00010515,2]
[348329655,1736446266672,-500.0,0.00010515,2]
[348329656,1736446266682,-500.0,0.00010515,2]
[348329657,1736446266694,-500.0,0.00010515,2]
[348329658,1736446266703,-500.0,0.00010515,2]
[348329659,1736446266712,-835.57,0.00010515,2]
[348329660,1736446266722,-968.37,0.00010515,2]
[348329661,1736446266732,-500.0,0.00010515,2]
[348329662,1736446266742,-507.91,0.00010515,2]
[348329663,1736446266752,-500.0,0.00010515,2]
[348329664,1736446266762,-842.86,0.00010515,2]
[348329665,1736446266772,-888.38,0.00010515,2]
[348329666,1736446266782,-500.0,0.00010515,2]
[348329667,1736446266793,-500.0,0.00010515,2]
[348329668,1736446266802,-809.97,0.00010515,2]
[348329669,1736446266811,-500.0,0.00010515,2]
[348329670,1736446266821,-500.0,0.00010515,2]
[348329671,1736446266832,-500.0,0.00010515,2]
[348329672,1736446266842,-500.0,0.00010515,2]
[348329673,1736446266851,-500.0,0.00010515,2]
[348329674,1736446266860,-1158.79,0.00010515,2]
[348329675,1736446266870,-500.0,0.00010515,2]
[348329676,1736446266879,-558.91,0.00010515,2]
[348329677,1736446266890,-500.0,0.00010515,2]
[348329678,1736446266900,-264.54,0.00010515,2]
[348329679,1736446266910,-500.0,0.00010515,2]
[348329680,1736446266920,-1242.9,0.00010515,2]
[348329681,1736446266929,-536.27,0.00010515,2]
[348329682,1736446266940,-500.0,0.00010515,2]
[348329683,1736446266951,-1185.16,0.00010515,2]
[348329684,1736446266961,-500.0,0.00010515,2]
[348329685,1736446266972,-500.0,0.00010515,2]
[348329686,1736446266983,-500.0,0.00010515,2]
[348329687,1736446266992,-500.0,0.00010515,2]
[348329688,1736446267003,-500.0,0.00010515,2]
[348329689,1736446267013,-581.47,0.00010515,2]
[348329690,1736446267022,-1316.71,0.00010515,2]
[348329691,1736446267032,-500.0,0.00010515,2]
[348329692,1736446267043,-2776.94,0.00010515,2]
[348329693,1736446267052,-1591.82,0.00010515,2]
[348329694,1736446267061,-1402.8,0.00010515,2]
[348329695,1736446267071,-900.32,0.00010515,2]
[348329696,1736446267081,-150.0,0.00010551,2]
[348329697,1736446267091,-500.0,0.00010614,2]
[348329698,1736446267101,-500.0,0.00010615,2]
[348329699,1736446267111,-1849.82,0.00010615,2]
[348329700,1736446267121,-1436.96,0.00010615,2]
[348329701,1736446267131,-500.0,0.00010617,2]
[348329702,1736446267141,-565.23,0.00010617,2]
[348329703,1736446267310,-1202.75,0.00010617,2]
[348329704,1736446267321,-601.54,0.00010617,2]
[348329705,1736446267333,-500.0,0.00010617,2]
[348329706,1736446267350,-636.43,0.00010617,2]
[348329707,1736446267360,-500.0,0.00010617,2]
[348329708,1736446267372,-966.55,0.00010617,2]
[348329709,1736446267382,-608.61,0.00010617,2]
[348329710,1736446267391,-1619.91,0.00010617,2]
[348329711,1736446267401,-1017.76,0.00010617,2]
[348329712,1736446267411,-1429.27,0.00010617,2]
[348329713,1736446267420,-1446.77,0.00010617,2]
[348329714,1736446267430,-1947.06,0.00010617,2]
[348329715,1736446267444,-2441.87,0.00010617,2]
[348329716,1736446267454,-5799.11,0.00010617,2]
[348329717,1736446267464,-1002.85,0.00010617,2]
[348329718,1736446267474,-538.3,0.00010617,2]
[348329719,1736446267483,-628.9,0.00010617,2]
[348329720,1736446267494,-2153.94,0.00010617,2]
[348329721,1736446267504,-500.0,0.00010617,2]
[348329722,1736446267514,-1550.54,0.00010617,2]
[348329723,1736446267523,-728.92,0.00010617,2]
[348329724,1736446267533,-1048.4,0.00010617,2]
[348329725,1736446267543,-1000.0,0.00010617,2]
[348329726,1736446267553,-930.31,0.00010617,2]
[348329727,1736446267563,-500.0,0.00010617,2]
[348329728,1736446267572,-202.16575369,0.000107,2]
[348329729,1736446267581,-31240.0,0.00010767,2]
[348329730,1736446267591,-1113.63,0.00010787,2]
[348329731,1736446267600,-500.0,0.00010787,2]
[348329732,1736446267609,-2128.58,0.00010787,2]
[348329733,1736446267619,-3067.28,0.00010787,2]
[348329734,1736446267629,-962.54,0.00010787,2]
[348329735,1736446267639,-1563.66,0.00010787,2]
[348329736,1736446267649,-500.0,0.00010787,2]
[348329737,1736446267659,-1114.99,0.00010787,2]
[348329738,1736446267668,-641.1,0.00010787,2]
[348329739,1736446267682,-2450.85,0.00010787,2]
[348329740,1736446267694,-500.0,0.00010787,2]
[348329741,1736446267704,-500.0,0.00010787,2]
[348329742,1736446267713,-882.83,0.00010787,2]
[348329743,1736446267723,-412.52538273,0.00010787,2]
[348329744,1736446267733,-500.0,0.00010787,2]
[348329745,1736446267742,-972.84,0.00010787,2]
[348329746,1736446267752,-629.69257042,0.00010787,2]
[348329747,1736446267762,-795.71,0.00010787,2]
[348329748,1736446267772,-500.0,0.00010788,2]
[348329749,1736446267785,-500.0,0.00010788,2]
[348329750,1736446267795,-500.0,0.00010788,2]
[348329751,1736446267805,-510.32,0.00010788,2]
[348329752,1736446267815,-500.0,0.00010788,2]
[348329753,1736446267825,-500.0,0.00010788,2]
[348329754,1736446267834,-500.0,0.00010788,2]
[348329755,1736446267844,-500.0,0.00010788,2]
[348329756,1736446267855,-500.0,0.00010788,2]
[348329757,1736446267865,-500.0,0.00010788,2]
[348329758,1736446267875,-500.0,0.00010788,2]
[348329759,1736446267884,-500.0,0.00010788,2]
[348329760,1736446267894,-786.64,0.00010788,2]
[348329761,1736446267904,-669.86,0.00010788,2]
[348329762,1736446267914,-500.0,0.00010788,2]
[348329763,1736446267924,-500.0,0.00010788,2]
[348329764,1736446267934,-500.0,0.00010788,2]
[348329765,1736446267945,-500.0,0.00010788,2]
[348329766,1736446267955,-500.0,0.00010788,2]
[348329767,1736446267964,-500.0,0.00010788,2]
[348329768,1736446267974,-500.0,0.00010788,2]
[348329769,1736446267984,-500.0,0.00010788,2]
[348329770,1736446267993,-500.0,0.00010788,2]
[348329771,1736446268002,-836.58,0.00010788,2]
[348329772,1736446268012,-500.0,0.00010788,2]
[348329773,1736446268022,-642.72,0.00010788,2]
[348329774,1736446268031,-500.0,0.00010788,2]
[348329775,1736446268042,-546.66,0.00010788,2]
[348329776,1736446268052,-500.0,0.00010788,2]
[348329777,1736446268062,-500.0,0.00010788,2]
[348329778,1736446268072,-611.28,0.00010788,2]
[348329779,1736446268082,-168.17315377,0.00010788,2]
[348329780,1736446268092,-500.0,0.00010788,2]
[348329781,1736446268101,-500.0,0.00010788,2]
[348329782,1736446268110,-500.0,0.00010788,2]
[348329783,1736446268120,-500.0,0.00010788,2]
[348329784,1736446268130,-500.0,0.00010788,2]
[348329785,1736446268141,-500.0,0.00010788,2]
[348329786,1736446268152,-500.0,0.00010788,2]
[348329787,1736446268162,-500.0,0.00010788,2]
[348329788,1736446268172,-500.0,0.00010788,2]
[348329789,1736446268183,-500.0,0.00010788,2]
[348329790,1736446268194,-500.0,0.00010788,2]
[348329791,1736446268204,-747.4,0.00010788,2]
[348329792,1736446268214,-500.44,0.00010788,2]
[348329793,1736446268223,-500.0,0.00010788,2]
[348329794,1736446268233,-500.0,0.00010788,2]
[348329795,1736446268243,-500.0,0.00010788,2]
[348329796,1736446268252,-507.94,0.00010788,2]
[348329797,1736446268262,-500.0,0.00010788,2]
[348329798,1736446268271,-500.0,0.00010788,2]
[348329799,1736446268281,-500.0,0.00010788,2]
[348329800,1736446268290,-500.0,0.00010788,2]
[348329801,1736446268299,-500.0,0.00010788,2]
[348329802,1736446268309,-677.74,0.00010788,2]
[348329803,1736446268318,-500.0,0.00010788,2]
[348329804,1736446268328,-500.0,0.00010788,2]
[348329805,1736446268338,-649.22,0.00010788,2]
[348329806,1736446268348,-559.78,0.00010788,2]
[348329807,1736446268357,-500.0,0.00010788,2]
[348329808,1736446268370,-500.0,0.00010788,2]
[348329809,1736446268380,-500.0,0.00010788,2]
[348329810,1736446268389,-736.91,0.00010788,2]
[348329811,1736446268399,-500.0,0.00010788,2]
[348329812,1736446268409,-500.0,0.00010788,2]
[348329813,1736446268419,-500.0,0.00010788,2]
[348329814,1736446268429,-652.46,0.00010788,2]
[348329815,1736446268441,-714.08,0.00010788,2]
[348329816,1736446268451,-500.0,0.00010788,2]
[348329817,1736446268462,-500.0,0.00010788,2]
[348329818,1736446268472,-500.0,0.00010788,2]
[348329819,1736446268483,-557.03,0.00010788,2]
[348329820,1736446268494,-500.0,0.00010788,2]
[348329821,1736446268504,-500.0,0.00010788,2]
[348329822,1736446268514,-500.0,0.00010788,2]
[348329823,1736446268524,-544.7,0.00010788,2]
[348329824,1736446268534,-500.0,0.00010788,2]
[348329825,1736446268543,-500.0,0.00010788,2]
[348329826,1736446268553,-500.0,0.00010788,2]
[348329827,1736446268564,-500.0,0.00010788,2]
[348329828,1736446268574,-704.44,0.00010788,2]
[348329829,1736446268583,-524.18,0.00010788,2]
[348329830,1736446268593,-500.0,0.00010788,2]
[348329831,1736446268602,-509.96,0.00010788,2]
[348329832,1736446268612,-500.0,0.00010788,2]
[348329833,1736446268621,-500.0,0.00010788,2]
[348329834,1736446268631,-646.53,0.00010788,2]
[348329835,1736446268640,-500.0,0.00010788,2]
[348329836,1736446268649,-500.0,0.00010788,2]
[348329837,1736446268659,-500.0,0.00010788,2]
[348329838,1736446268669,-934.69,0.00010788,2]
[348329839,1736446268679,-500.0,0.00010788,2]
[348329840,1736446268690,-500.0,0.00010788,2]
[348329841,1736446268700,-500.0,0.00010788,2]
[348329842,1736446268709,-500.0,0.00010788,2]
[348329843,1736446268720,-500.0,0.00010788,2]
[348329844,1736446268730,-500.0,0.00010788,2]
[348329845,1736446268740,-514.0,0.00010788,2]
[348329846,1736446268749,-500.0,0.00010788,2]
[348329847,1736446268759,-500.0,0.00010788,2]
[348329848,1736446268771,-500.0,0.00010788,2]
[348329849,1736446268782,-736.84,0.00010788,2]
[348329850,1736446268792,-500.0,0.00010788,2]
[348329851,1736446268802,-609.52591518,0.00010788,2]
[348329852,1736446268814,-500.0,0.00010788,2]
[348329853,1736446268824,-500.0,0.00010788,2]
[348329854,1736446268834,-500.0,0.00010788,2]
[348329855,1736446268845,-262.77,0.00010788,2]
[348329856,1736446268856,-881.49,0.00010788,2]
[348329857,1736446268867,-500.0,0.00010788,2]
[348329858,1736446268876,-500.0,0.00010788,2]
[348329859,1736446268887,-500.0,0.00010788,2]
[348329860,1736446268896,-500.0,0.00010788,2]
[348329861,1736446268906,-500.0,0.00010788,2]
[348329862,1736446268915,-500.0,0.00010788,2]
[348329863,1736446268925,-1097.98,0.00010788,2]
[348329864,1736446268936,-575.7,0.00010788,2]
[348329865,1736446268946,-604.6,0.00010788,2]
[348329866,1736446268957,-500.0,0.00010788,2]
[348329867,1736446268967,-500.0,0.00010788,2]
[348329868,1736446268977,-721.27,0.00010788,2]
[348329869,1736446268987,-977.99,0.00010788,2]
[348329870,1736446268997,-500.0,0.00010788,2]
[348329871,1736446269006,-500.0,0.00010788,2]
[348329872,1736446269016,-500.0,0.00010788,2]
[348329873,1736446269025,-500.0,0.00010788,2]
[348329874,1736446269035,-258.76596884,0.00010788,2]
[348329875,1736446269046,-547.73,0.00010788,2]
[348329876,1736446269055,-911.73,0.00010788,2]
[348329877,1736446269065,-500.0,0.00010788,2]
[348329878,1736446269075,-500.0,0.00010788,2]
[348329879,1736446269084,-856.27,0.00010788,2]
[348329880,1736446269094,-500.0,0.00010788,2]
[348329881,1736446269103,-500.0,0.00010788,2]
[348329882,1736446269113,-500.0,0.00010788,2]
[348329883,1736446269122,-552.74,0.00010788,2]
[348329884,1736446269132,-500.0,0.00010788,2]
[348329885,1736446269142,-2976.67,0.00010788,2]
[348329886,1736446269151,-500.0,0.00010788,2]
[348329887,1736446269161,-500.0,0.00010788,2]
[348329888,1736446269171,-500.0,0.00010788,2]
[348329889,1736446269181,-500.0,0.00010788,2]
[348329890,1736446269193,-500.0,0.00010788,2]
[348329891,1736446269203,-551.12,0.00010788,2]
[348329892,1736446269213,-500.0,0.00010788,2]
[348329893,1736446269223,-500.0,0.00010788,2]
[348329894,1736446269232,-597.63,0.00010788,2]
[348329895,1736446269243,-500.0,0.00010788,2]
[348329896,1736446269253,-645.63,0.00010788,2]
[348329897,1736446269263,-500.0,0.00010788,2]
[348329898,1736446269272,-613.72,0.00010788,2]
[348329899,1736446269282,-500.0,0.00010788,2]
[348329900,1736446269292,-500.0,0.00010788,2]
[348329901,1736446269302,-500.0,0.00010788,2]
[348329902,1736446269313,-1554.32,0.00010788,2]
[348329903,1736446269323,-500.0,0.00010788,2]
[348329904,1736446269333,-667.84,0.00010788,2]
[348329905,1736446269343,-500.0,0.00010788,2]
[348329906,1736446269353,-500.0,0.00010788,2]
[348329907,1736446269363,-500.0,0.00010788,2]
[348329908,1736446269374,-715.52,0.00010788,2]
[348329909,1736446269384,-500.0,0.00010788,2]
[348329910,1736446269393,-500.0,0.00010788,2]
[348329911,1736446269403,-500.0,0.00010788,2]
[348329912,1736446269412,-500.0,0.00010788,2]
[348329913,1736446269422,-653.62,0.00010788,2]
[348329914,1736446269431,-500.0,0.00010788,2]
[348329915,1736446269443,-500.0,0.00010788,2]
[348329916,1736446269453,-500.0,0.00010788,2]
[348329917,1736446269462,-660.67,0.00010788,2]
[348329918,1736446269473,-500.0,0.00010788,2]
[348329919,1736446269482,-2792.63,0.00010788,2]
[348329920,1736446269493,-500.0,0.00010788,2]
[348329921,1736446269502,-500.0,0.00010788,2]
[348329922,1736446269511,-2039.19,0.00010788,2]
[348329923,1736446269521,-500.0,0.00010788,2]
[348329924,1736446269531,-1105.4,0.00010788,2]
[348329925,1736446269541,-500.0,0.00010788,2]
[348329926,1736446269550,-500.0,0.00010788,2]
[348329927,1736446269560,-500.0,0.00010788,2]
[348329928,1736446269569,-500.0,0.00010788,2]
[348329929,1736446269579,-500.0,0.00010788,2]
[348329930,1736446269589,-1883.64,0.00010788,2]
[348329931,1736446269599,-500.0,0.00010788,2]
[348329932,1736446269608,-731.185071,0.00010788,2]
[348329933,1736446269618,-500.0,0.00010788,2]
[348329934,1736446269627,-500.0,0.00010788,2]
[348329935,1736446269636,-345.09359248,0.00010788,2]
[348329936,1736446269645,-947.33,0.00010788,2]
[348329937,1736446269655,-3402.98,0.00010788,2]
[348329938,1736446269664,-500.0,0.00010788,2]
[348329939,1736446269673,-500.0,0.00010788,2]
[348329940,1736446269683,-500.0,0.00010788,2]
[348329941,1736446269695,-500.0,0.00010788,2]
[348329942,1736446269704,-6027.63,0.00010788,2]
[348329943,1736446269714,-500.0,0.00010788,2]
[348329944,1736446269723,-500.0,0.00010788,2]
[348329945,1736446269733,-500.0,0.00010788,2]
[348329946,1736446269743,-500.0,0.00010788,2]
[348329947,1736446269753,-521.49,0.00010788,2]
[348329948,1736446269763,-500.0,0.00010788,2]
[348329949,1736446269775,-500.0,0.00010788,2]
[348329950,1736446269785,-617.41,0.00010788,2]
[348329951,1736446269795,-500.0,0.00010788,2]
[348329952,1736446269805,-500.0,0.00010788,2]
[348329953,1736446269814,-2040.34,0.00010788,2]
[348329954,1736446269824,-500.0,0.00010788,2]
[348329955,1736446269834,-500.0,0.00010788,2]
[348329956,1736446269844,-544.73,0.00010788,2]
[348329957,1736446269856,-727.318223,0.00010788,2]
[348329958,1736446269865,-500.0,0.00010788,2]
[348329959,1736446269875,-500.0,0.00010788,2]
[348329960,1736446269884,-500.0,0.00010788,2]
[348329961,1736446269894,-500.0,0.00010788,2]
[348329962,1736446269903,-500.0,0.00010788,2]
[348329963,1736446269912,-1167.08,0.00010788,2]
[348329964,1736446269922,-500.0,0.00010788,2]
[348329965,1736446269931,-669.77,0.00010788,2]
[348329966,1736446269941,-513.82876711,0.00010788,2]
[348329967,1736446269951,-625.31,0.00010788,2]
[348329968,1736446269960,-500.0,0.00010788,2]
[348329969,1736446269969,-500.0,0.00010788,2]
[348329970,1736446269978,-663.2,0.00010788,2]
[348329971,1736446269988,-500.0,0.00010788,2]
[348329972,1736446269997,-1967.19,0.00010788,2]
[348329973,1736446270007,-500.0,0.00010788,2]
[348329974,1736446270016,-500.0,0.00010788,2]
[348329975,1736446270025,-960.63,0.00010788,2]
[348329976,1736446270034,-500.0,0.00010788,2]
[348329977,1736446270044,-500.0,0.00010788,2]
[348329978,1736446270054,-1864.07,0.00010788,2]
[348329979,1736446270063,-500.0,0.00010788,2]
[348329980,1736446270073,-500.0,0.00010788,2]
[348329981,1736446270082,-500.0,0.00010788,2]
[348329982,1736446270091,-533.66,0.00010788,2]
[348329983,1736446270101,-500.0,0.00010788,2]
[348329984,1736446270110,-500.0,0.00010788,2]
[348329985,1736446270119,-500.0,0.00010788,2]
[348329986,1736446270129,-513.38,0.00010788,2]
[348329987,1736446270139,-500.0,0.00010788,2]
[348329988,1736446270148,-231.30913473,0.00010788,2]
[348329989,1736446270157,-707.52,0.00010788,2]
[348329990,1736446270166,-500.0,0.00010788,2]
[348329991,1736446270175,-500.0,0.00010788,2]
[348329992,1736446270184,-500.0,0.00010788,2]
[348329993,1736446270195,-500.0,0.00010788,2]
[348329994,1736446270205,-3800.2,0.00010788,2]
[348329995,1736446270215,-520.07,0.00010788,2]
[348329996,1736446270224,-500.0,0.00010788,2]
[348329997,1736446270233,-660.12,0.00010788,2]
[348329998,1736446270243,-767.59,0.00010788,2]
[348329999,1736446270253,-500.0,0.00010788,2]
[348330000,1736446270262,-835.3,0.00010788,2]